fUST/lending_fUST_20240924
["ID","MTS","AMOUNT","RATE_DAILY","PERIOD"]
[339036364,1727159448419,-151.0,0.00032876,7]
[339036365,1727159448428,-525.90832921,0.00032876,14]
[339036366,1727159448438,-151.0,0.00032876,7]
[339036367,1727159448448,-151.0,0.00032876,7]
[339036368,1727159448458,-151.0,0.00032876,7]
[339036369,1727159448467,-151.0,0.00032876,7]
[339036370,1727159448477,-500.0,0.00032876,14]
[339036371,1727159448487,-151.0,0.00032876,7]
[339036372,1727159448497,-500.0,0.00032876,14]
[339036373,1727159448506,-151.0,0.00032876,7]
[339036374,1727159448515,-151.0,0.00032876,7]
[339036375,1727159448525,-151.0,0.00032876,7]
[339036376,1727159448534,-500.0,0.00032876,14]
[339036377,1727159448543,-151.0,0.00032876,7]
[339036378,1727159448552,-151.0,0.00032876,7]
[339036379,1727159448561,-500.0,0.00032876,14]
[339036380,1727159448571,-151.0,0.00032876,7]
[339036381,1727159448580,-500.0,0.00032876,14]
[339036382,1727159448590,-1003.34,0.00032876,14]
[339036383,1727159448599,-503.28116294,0.00032876,14]
[339036384,1727159448608,-500.0,0.00032876,14]
[339036385,1727159448618,-500.0,0.00032876,14]
[339036386,1727159448627,-500.0,0.00032876,14]
[339036387,1727159448636,-151.0,0.00032876,7]
[339036388,1727159448645,-152.445819,0.00032876,7]
[339036389,1727159448654,-500.0,0.00032876,14]
[339036390,1727159448664,-500.0,0.00032876,14]
[339036391,1727159448677,-500.0,0.00032876,14]
[339036392,1727159448686,-168.923497,0.00032876,7]
[339036393,1727159448695,-168.923497,0.00032876,7]
[339036394,1727159448704,-168.923497,0.00032876,7]
[339036395,1727159448714,-168.923497,0.00032876,7]
[339036396,1727159448724,-168.923497,0.00032876,7]
[339036397,1727159448733,-168.923497,0.00032876,7]
[339036398,1727159448743,-500.0,0.00032876,14]
[339036399,1727159448754,-509.86537518,0.00032876,14]
[339036400,1727159448764,-500.0,0.00032876,14]
[339036401,1727159448773,-168.923497,0.00032876,7]
[339036402,1727159448782,-168.923497,0.00032876,7]
[339036403,1727159448792,-168.923497,0.00032876,7]
[339036404,1727159448800,-168.923497,0.00032876,7]
[339036405,1727159448810,-776.89,0.00032876,2]
[339036406,1727159448820,-168.923497,0.00032876,7]
[339036407,1727159448829,-168.923497,0.00032876,7]
[339036408,1727159448839,-500.0,0.00032876,14]
[339036409,1727159448848,-501.41582125,0.00032876,14]
[339036410,1727159448858,-503.40690948,0.00032876,14]
[339036411,1727159448867,-528.82148767,0.00032876,14]
[339036412,1727159448876,-428.83837448,0.00032876,14]
[339036413,1727159448885,-500.0,0.00032876,14]
[339036414,1727159448895,-500.0,0.00032876,14]
[339036415,1727159448904,-503.35468415,0.00032876,14]
[339036416,1727159448913,-500.0,0.00032876,14]
[339036417,1727159448922,-500.0,0.00032876,14]
[339036418,1727159448931,-500.0,0.00032876,10]
[339036419,1727159448942,-151.0,0.00032876,7]
[339036420,1727159448951,-151.0,0.00032876,7]
[339036421,1727159448960,-511.66509904,0.00032876,14]
[339036422,1727159448970,-186.22288,0.00032876,7]
[339036423,1727159448979,-186.22288,0.00032876,7]
[339036424,1727159448988,-186.22288,0.00032876,7]
[339036425,1727159448997,-504.21353377,0.00032876,14]
[339036426,1727159449006,-186.22288,0.00032876,7]
[339036427,1727159449015,-186.22288,0.00032876,7]
[339036428,1727159449025,-186.22288,0.00032876,7]
[339036429,1727159449033,-500.0,0.00032876,14]
[339036430,1727159449043,-500.0,0.00032876,14]
[339036431,1727159449051,-500.0,0.00032876,14]
[339036432,1727159449061,-186.22288,0.00032876,7]
[339036433,1727159449071,-500.0,0.00032876,14]
[339036434,1727159449080,-186.22288,0.00032876,7]
[339036435,1727159449089,-186.22288,0.00032876,7]
[339036436,1727159449098,-186.22288,0.00032876,7]
[339036437,1727159449107,-186.22288,0.00032876,7]
[339036438,1727159449117,-186.22288,0.00032876,7]
[339036439,1727159449126,-500.0,0.00032876,14]
[339036440,1727159449135,-501.25942675,0.00032876,14]
[339036441,1727159449145,-500.0,0.00032876,14]
[339036442,1727159449154,-510.47794777,0.00032876,14]
[339036443,1727159449165,-500.50517014,0.00032876,14]
[339036444,1727159449174,-500.0,0.00032876,14]
[339036445,1727159449183,-500.0,0.00032876,14]
[339036446,1727159449193,-528.69317364,0.00032876,14]
[339036447,1727159449203,-500.0,0.00032876,14]
[339036448,1727159449212,-500.0,0.00032876,14]
[339036449,1727159449221,-500.0,0.00032876,14]
[339036450,1727159449231,-500.0,0.00032876,14]
[339036451,1727159449241,-500.0,0.00032876,14]
[339036452,1727159449250,-500.0,0.00032876,14]
[339036453,1727159449259,-500.0,0.00032876,14]
[339036454,1727159449269,-500.0,0.00032876,14]
[339036455,1727159449278,-500.0,0.00032876,14]
[339036456,1727159449288,-500.0,0.00032876,14]
[339036457,1727159449297,-500.0,0.00032876,14]
[339036458,1727159449306,-500.0,0.00032876,14]
[339036459,1727159449315,-500.0,0.00032876,14]
[339036460,1727159449324,-500.0,0.00032876,14]
[339036461,1727159449333,-511.12573183,0.00032876,14]
[339036462,1727159449342,-500.0,0.00032876,14]
[339036463,1727159449351,-500.0,0.00032876,14]
[339036464,1727159449361,-500.0,0.00032876,14]
[339036465,1727159449370,-439.81114986,0.00032876,14]
[339036466,1727159449380,-500.0,0.00032876,14]
[339036467,1727159449389,-500.0,0.00032876,14]
[339036468,1727159449398,-500.0,0.00032876,14]
[339036469,1727159449408,-500.0,0.00032876,14]
[339036470,1727159449418,-501.85649497,0.00032876,14]
[339036471,1727159449427,-503.32559724,0.00032876,14]
[339036472,1727159449437,-151.0,0.00032876,7]
[339036473,1727159449446,-500.0,0.00032876,14]
[339036474,1727159449455,-151.0,0.00032876,7]
[339036475,1727159449465,-151.0,0.00032876,7]
[339036476,1727159449475,-151.0,0.00032876,7]
[339036477,1727159449484,-151.0,0.00032876,7]
[339036478,1727159449494,-151.0,0.00032876,7]
[339036479,1727159449503,-500.0,0.00032876,14]
[339036480,1727159449513,-151.0,0.00032876,7]
[339036481,1727159449522,-206.866728,0.00032876,7]
[339036482,1727159449532,-500.0,0.00032876,14]
[339036483,1727159449542,-501.1897996,0.00032876,14]
[339036484,1727159449551,-500.0,0.00032876,14]
[339036485,1727159449560,-203.37416405,0.00032876,14]
[339036486,1727159449569,-500.0,0.00032876,14]
[339036487,1727159449578,-500.0,0.00032876,14]
[339036488,1727159449588,-500.0,0.00032876,14]
[339036489,1727159449597,-500.0,0.00032876,14]
[339036490,1727159449605,-513.80340793,0.00032876,14]
[339036491,1727159449615,-500.0,0.00032876,14]
[339036492,1727159449623,-500.0,0.00032876,14]
[339036493,1727159449633,-501.31669443,0.00032876,14]
[339036494,1727159449642,-506.46442485,0.00032876,14]
[339036495,1727159449651,-500.0,0.00032876,14]
[339036496,1727159449660,-500.0,0.00032876,14]
[339036497,1727159449673,-500.0,0.00032876,14]
[339036498,1727159449683,-500.0,0.00032876,14]
[339036499,1727159449769,-505.19328082,0.00032876,14]
[339036500,1727159449778,-500.0,0.00032876,14]
[339036501,1727159449787,-500.0,0.00032876,14]
[339036502,1727159449796,-500.0,0.00032876,14]
[339036503,1727159449805,-502.06139033,0.00032876,14]
[339036504,1727159449814,-500.0,0.00032876,14]
[339036505,1727159449823,-500.0,0.00032876,14]
[339036506,1727159449832,-500.0,0.00032876,14]
[339036507,1727159449842,-500.0,0.00032876,14]
[339036508,1727159449851,-500.0,0.00032876,14]
[339036509,1727159449860,-510.22939795,0.00032876,14]
[339036510,1727159449869,-500.0,0.00032876,14]
[339036511,1727159449879,-507.44021711,0.00032876,14]
[339036512,1727159449887,-614.84211808,0.00032876,14]
[339036513,1727159449897,-501.65577504,0.00032876,14]
[339036514,1727159449906,-507.39762864,0.00032876,14]
[339036515,1727159449915,-500.0,0.00032876,14]
[339036516,1727159449925,-500.0,0.00032876,14]
[339036517,1727159449935,-500.0,0.00032876,14]
[339036518,1727159449944,-503.00897696,0.00032876,14]
[339036519,1727159449953,-500.0,0.00032876,14]
[339036520,1727159449962,-500.0,0.00032876,14]
[339036521,1727159449972,-500.0,0.00032876,14]
[339036522,1727159449981,-500.0,0.00032876,14]
[339036523,1727159449990,-500.0,0.00032876,14]
[339036524,1727159449999,-525.31356542,0.00032876,14]
[339036525,1727159450008,-151.0,0.00032876,7]
[339036526,1727159450018,-151.0,0.00032876,7]
[339036527,1727159450027,-512.30908558,0.00032876,14]
[339036528,1727159450036,-500.0,0.00032876,14]
[339036529,1727159450046,-528.74771605,0.00032876,14]
[339036530,1727159450055,-503.11694764,0.00032876,14]
[339036531,1727159450064,-500.0,0.00032876,14]
[339036532,1727159450074,-150.03781309,0.00032876,14]
[339036533,1727159450082,-503.77101099,0.00032876,14]
[339036534,1727159450091,-500.0,0.00032876,14]
[339036535,1727159450100,-500.0,0.00032876,14]
[339036536,1727159450109,-500.0,0.00032876,14]
[339036537,1727159450118,-500.0,0.00032876,14]
[339036538,1727159450127,-503.85679031,0.00032876,14]
[339036539,1727159450137,-500.0,0.00032876,14]
[339036540,1727159450146,-500.0,0.00032876,14]
[339036541,1727159450155,-500.0,0.00032876,120]
[339036542,1727159450165,-548.3271319,0.00032876,14]
[339036543,1727159450175,-500.0,0.00032876,14]
[339036544,1727159450184,-504.80601122,0.00032876,14]
[339036545,1727159450195,-500.0,0.00032876,14]
[339036546,1727159450205,-218.739617,0.00032876,7]
[339036547,1727159450215,-218.739617,0.00032876,7]
[339036548,1727159450224,-500.0,0.00032876,14]
[339036549,1727159450235,-218.739617,0.00032876,7]
[339036550,1727159450245,-218.739617,0.00032876,7]
[339036551,1727159450254,-218.739617,0.00032876,7]
[339036552,1727159450264,-218.739617,0.00032876,7]
[339036553,1727159450273,-218.739617,0.00032876,7]
[339036554,1727159450283,-218.739617,0.00032876,7]
[339036555,1727159450292,-218.739617,0.00032876,7]
[339036556,1727159450301,-218.739617,0.00032876,7]
[339036557,1727159450311,-218.739617,0.00032876,7]
[339036558,1727159450321,-500.0,0.00032876,14]
[339036559,1727159450330,-218.739617,0.00032876,7]
[339036560,1727159450340,-218.739617,0.00032876,7]
[339036561,1727159450349,-218.739617,0.00032876,7]
[339036562,1727159450359,-309.761292,0.00032876,7]
[339036563,1727159450369,-500.0,0.00032876,14]
[339036564,1727159450379,-309.761292,0.00032876,7]
[339036565,1727159450389,-309.761292,0.00032876,7]
[339036566,1727159450398,-309.761292,0.00032876,7]
[339036567,1727159450408,-309.761292,0.00032876,7]
[339036568,1727159450418,-309.761292,0.00032876,7]
[339036569,1727159450427,-309.761292,0.00032876,7]
[339036570,1727159450437,-309.761292,0.00032876,7]
[339036571,1727159450446,-309.761292,0.00032876,7]
[339036572,1727159450455,-309.761292,0.00032876,7]
[339036573,1727159450466,-309.761292,0.00032876,7]
[339036574,1727159450475,-309.761292,0.00032876,7]
[339036575,1727159450485,-309.761292,0.00032876,7]
[339036576,1727159450495,-309.761292,0.00032876,7]
[339036577,1727159450505,-500.0,0.00032876,14]
[339036578,1727159450515,-501.94687358,0.00032876,14]
[339036579,1727159450525,-500.0,0.00032876,14]
[339036580,1727159450535,-500.0,0.00032876,14]
[339036581,1727159450544,-500.0,0.00032876,14]
[339036582,1727159450554,-500.0,0.00032876,14]
[339036583,1727159450564,-500.0,0.00032876,7]
[339036584,1727159450573,-500.0,0.00032876,14]
[339036585,1727159450584,-500.0,0.00032876,14]
[339036586,1727159450593,-500.0,0.00032876,14]
[339036587,1727159450602,-500.0,0.00032876,14]
[339036588,1727159450611,-590.15498312,0.00032876,14]
[339036589,1727159450621,-500.0,0.00032876,14]
[339036590,1727159450630,-503.38256516,0.00032876,14]
[339036591,1727159450640,-505.99702919,0.00032876,14]
[339036592,1727159450649,-500.0,0.00032876,14]
[339036593,1727159450659,-503.47920982,0.00032876,14]
[339036594,1727159450670,-503.42974604,0.00032876,14]
[339036595,1727159450680,-500.0,0.00032876,14]
[339036596,1727159450691,-500.86662093,0.00032876,14]
[339036597,1727159450706,-501.24077373,0.00032876,14]
[339036598,1727159450716,-598.31375687,0.00032876,14]
[339036599,1727159450725,-151.0,0.00032876,7]
[339036600,1727159450735,-151.0,0.00032876,7]
[339036601,1727159450745,-151.0,0.00032876,7]
[339036602,1727159450754,-151.0,0.00032876,7]
[339036603,1727159450763,-151.0,0.00032876,7]
[339036604,1727159450772,-151.0,0.00032876,7]
[339036605,1727159450781,-151.0,0.00032876,7]
[339036606,1727159450790,-169.15718,0.00032876,7]
[339036607,1727159450799,-162.59394,0.00032876,7]
[339036608,1727159450809,-507.35734831,0.00032876,14]
[339036609,1727159450819,-500.0,0.00032876,14]
[339036610,1727159450829,-500.0,0.00032876,14]
[339036611,1727159450838,-626.03851737,0.00032876,14]
[339036612,1727159450847,-500.0,0.00032876,14]
[339036613,1727159450857,-500.0,0.00032876,14]
[339036614,1727159450866,-500.0,0.00032876,14]
[339036615,1727159450876,-502.6294825,0.00032876,14]
[339036616,1727159450886,-501.24813842,0.00032876,14]
[339036617,1727159450896,-500.0,0.00032876,14]
[339036618,1727159450905,-500.80402567,0.00032876,14]
[339036619,1727159450915,-500.0,0.00032876,14]
[339036620,1727159450924,-510.56773153,0.00032876,14]
[339036621,1727159450934,-500.0,0.00032876,14]
[339036622,1727159450946,-1046.27,0.00032876,14]
[339036623,1727159450955,-500.0,0.00032876,14]
[339036624,1727159450965,-500.0,0.00032876,14]
[339036625,1727159450975,-500.0,0.00032876,14]
[339036626,1727159450984,-500.0,0.00032876,14]
[339036627,1727159450993,-402.76335475,0.00032876,14]
[339036628,1727159451002,-501.94090567,0.00032876,14]
[339036629,1727159451011,-409.38257102,0.00032876,14]
[339036630,1727159451021,-500.0,0.00032876,14]
[339036631,1727159451030,-500.0,0.00032876,14]
[339036632,1727159451040,-500.0,0.00032876,14]
[339036633,1727159451049,-1001.69,0.00032876,14]
[339036634,1727159451059,-500.0,0.00032876,14]
[339036635,1727159451069,-500.0,0.00032876,14]
[339036636,1727159451079,-500.0,0.00032876,14]
[339036637,1727159451088,-500.0,0.00032876,14]
[339036638,1727159451097,-502.69130442,0.00032876,14]
[339036639,1727159451107,-249.59898904,0.00032876,14]
[339036640,1727159451117,-500.0,0.00032876,2]
[339036641,1727159451126,-500.0,0.00032876,14]
[339036642,1727159451136,-500.0,0.00032876,14]
[339036643,1727159451145,-751.847245,0.00032876,7]
[339036644,1727159451155,-500.0,0.00032876,14]
[339036645,1727159451165,-751.847245,0.00032876,7]
[339036646,1727159451174,-751.847245,0.00032876,7]
[339036647,1727159451184,-500.0,0.00032876,14]
[339036648,1727159451202,-751.847245,0.00032876,7]
[339036649,1727159451211,-500.0,0.00032876,14]
[339036650,1727159451219,-751.847245,0.00032876,7]
[339036651,1727159451229,-751.847245,0.00032876,7]
[339036652,1727159451239,-751.847245,0.00032876,7]
[339036653,1727159451248,-506.86571272,0.00032876,14]
[339036654,1727159451258,-524.51965712,0.00032876,14]
[339036655,1727159451268,-751.847245,0.00032876,7]
[339036656,1727159451277,-751.847245,0.00032876,7]
[339036657,1727159451287,-500.0,0.00032876,14]
[339036658,1727159451296,-751.847245,0.00032876,7]
[339036659,1727159451305,-751.847245,0.00032876,7]
[339036660,1727159451315,-484.3046037,0.00032876,14]
[339036661,1727159451324,-751.847245,0.00032876,7]
[339036662,1727159451333,-500.0,0.00032876,14]
[339036663,1727159451342,-751.847245,0.00032876,7]
[339036664,1727159451351,-751.847245,0.00032876,7]
[339036665,1727159451361,-502.59730381,0.00032876,14]
[339036666,1727159451370,-503.92689665,0.00032876,14]
[339036667,1727159451380,-506.67480493,0.00032876,14]
[339036668,1727159451389,-529.67572777,0.00032876,14]
[339036669,1727159451398,-508.34370978,0.00032876,14]
[339036670,1727159451408,-151.0,0.00032876,7]
[339036671,1727159451417,-500.0,0.00032876,14]
[339036672,1727159451426,-151.0,0.00032876,7]
[339036673,1727159451435,-500.0,0.00032876,14]
[339036674,1727159451447,-151.0,0.00032876,7]
[339036675,1727159451456,-500.0,0.00032876,14]
[339036676,1727159451466,-151.0,0.00032876,7]
[339036677,1727159451475,-510.47702767,0.00032876,14]
[339036678,1727159451548,-151.0,0.00032876,7]
[339036679,1727159451564,-812.07,0.00032876,2]
[339036680,1727159451574,-507.88102413,0.00032876,14]
[339036681,1727159451583,-151.0,0.00032876,7]
[339036682,1727159451592,-151.0,0.00032876,7]
[339036683,1727159451601,-500.0,0.00032876,14]
[339036684,1727159451611,-500.0,0.00032876,14]
[339036685,1727159451620,-500.0,0.00032876,14]
[339036686,1727159451629,-513.14285207,0.00032876,14]
[339036687,1727159451639,-500.0,0.00032876,14]
[339036688,1727159451648,-573.3,0.00032876,14]
[339036689,1727159451657,-507.05503378,0.00032876,14]
[339036690,1727159451668,-1000.0,0.00032876,14]
[339036691,1727159451678,-151.0,0.00032876,7]
[339036692,1727159451689,-151.0,0.00032876,7]
[339036693,1727159451698,-500.0,0.00032876,14]
[339036694,1727159451707,-151.0,0.00032876,7]
[339036695,1727159451716,-502.89617833,0.00032876,14]
[339036696,1727159451726,-151.0,0.00032876,7]
[339036697,1727159451735,-151.0,0.00032876,7]
[339036698,1727159451744,-151.0,0.00032876,7]
[339036699,1727159451753,-151.0,0.00032876,7]
[339036700,1727159451763,-537.8957131,0.00032876,14]
[339036701,1727159451772,-621.82725014,0.00032876,14]
[339036702,1727159451782,-500.0,0.00032876,14]
[339036703,1727159451791,-500.0,0.00032876,14]
[339036704,1727159451800,-500.0,0.00032876,14]
[339036705,1727159451809,-500.0,0.00032876,14]
[339036706,1727159451818,-500.0,0.00032876,14]
[339036707,1727159451827,-500.0,0.00032876,14]
[339036708,1727159451836,-500.0,0.00032876,14]
[339036709,1727159451846,-500.0,0.00032876,14]
[339036710,1727159451855,-500.0,0.00032876,14]
[339036711,1727159451864,-500.0,0.00032876,14]
[339036712,1727159451873,-500.0,0.00032876,14]
[339036713,1727159451882,-500.0,0.00032876,14]
[339036714,1727159451893,-500.0,0.00032876,14]
[339036715,1727159451903,-500.0,0.00032876,14]
[339036716,1727159451912,-445.74003565,0.00032876,14]
[339036717,1727159451920,-498.99834669,0.00032876,14]
[339036718,1727159451928,-623.47,0.00032876,14]
[339036719,1727159451936,-500.0,0.00032876,14]
[339036720,1727159451949,-184.792268,0.00032876,7]
[339036721,1727159451956,-501.21265407,0.00032876,14]
[339036722,1727159451964,-184.792268,0.00032876,7]
[339036723,1727159451973,-184.792268,0.00032876,7]
[339036724,1727159451983,-184.792268,0.00032876,7]
[339036725,1727159451992,-500.0,0.00032876,14]
[339036726,1727159452001,-184.792268,0.00032876,7]
[339036727,1727159452010,-184.792268,0.00032876,7]
[339036728,1727159452020,-506.5446155,0.00032876,14]
[339036729,1727159452029,-184.792268,0.00032876,7]
[339036730,1727159452038,-184.792268,0.00032876,7]
[339036731,1727159452047,-500.0,0.00032876,14]
[339036732,1727159452056,-667.818887,0.00032876,7]
[339036733,1727159452065,-184.792268,0.00032876,7]
[339036734,1727159452074,-667.818887,0.00032876,7]
[339036735,1727159452083,-184.792268,0.00032876,7]
[339036736,1727159452092,-667.818887,0.00032876,7]
[339036737,1727159452102,-184.792268,0.00032876,7]
[339036738,1727159452110,-667.818887,0.00032876,7]
[339036739,1727159452119,-184.792268,0.00032876,7]
[339036740,1727159452128,-667.818887,0.00032876,7]
[339036741,1727159452137,-184.792268,0.00032876,7]
[339036742,1727159452147,-667.818887,0.00032876,7]
[339036743,1727159452156,-184.792268,0.00032876,7]
[339036744,1727159452165,-667.818887,0.00032876,7]
[339036745,1727159452173,-667.818887,0.00032876,7]
[339036746,1727159452182,-667.818887,0.00032876,7]
[339036747,1727159452192,-667.818887,0.00032876,7]
[339036748,1727159452201,-500.0,0.00032876,14]
[339036749,1727159452210,-500.0,0.00032876,14]
[339036750,1727159452219,-667.818887,0.00032876,7]
[339036751,1727159452230,-667.818887,0.00032876,7]
[339036752,1727159452240,-667.818887,0.00032876,7]
[339036753,1727159452250,-667.818887,0.00032876,7]
[339036754,1727159452259,-501.26527161,0.00032876,14]
[339036755,1727159452268,-500.0,0.00032876,14]
[339036756,1727159452277,-500.0,0.00032876,14]
[339036757,1727159452287,-500.0,0.00032876,14]
[339036758,1727159452296,-500.0,0.00032876,14]
[339036759,1727159452306,-537.16585228,0.00032876,14]
[339036760,1727159452315,-504.52388508,0.00032876,14]
[339036761,1727159452324,-5992.36,0.00032876,7]
[339036762,1727159452333,-500.95875804,0.00032876,14]
[339036763,1727159452342,-504.56798771,0.00032876,14]
[339036764,1727159452351,-517.59482797,0.00032876,14]
[339036765,1727159452361,-500.0,0.00032876,14]
[339036766,1727159452370,-502.45883024,0.00032876,14]
[339036767,1727159452380,-517.96050365,0.00032876,14]
[339036768,1727159452389,-500.0,0.00032876,14]
[339036769,1727159452399,-500.0,0.00032876,14]
[339036770,1727159452408,-500.0,0.00032876,14]
[339036771,1727159452418,-474.96875918,0.00032876,14]
[339036772,1727159452427,-500.0,0.00032876,14]
[339036773,1727159452436,-500.0,0.00032876,14]
[339036774,1727159452445,-500.0,0.00032876,14]
[339036775,1727159452454,-500.0,0.00032876,14]
[339036776,1727159452463,-500.0,0.00032876,14]
[339036777,1727159452473,-500.0,0.00032876,14]
[339036778,1727159452482,-500.0,0.00032876,14]
[339036779,1727159452491,-500.0,0.00032876,14]
[339036780,1727159452501,-500.0,0.00032876,14]
[339036781,1727159452510,-580.3,0.00032876,7]
[339036782,1727159452519,-500.0,0.00032876,14]
[339036783,1727159452529,-500.0,0.00032876,14]
[339036784,1727159452538,-500.0,0.00032876,14]
[339036785,1727159452547,-500.0,0.00032876,14]
[339036786,1727159452557,-500.0,0.00032876,14]
[339036787,1727159452566,-500.0,0.00032876,14]
[339036788,1727159452575,-526.07486468,0.00032876,14]
[339036789,1727159452584,-500.0,0.00032876,14]
[339036790,1727159452593,-500.0,0.00032876,14]
[339036791,1727159452602,-500.0,0.00032876,14]
[339036792,1727159452611,-500.0,0.00032876,14]
[339036793,1727159452621,-394.93005516,0.00032876,14]
[339036794,1727159452630,-151.0,0.00032876,7]
[339036795,1727159452639,-151.0,0.00032876,7]
[339036796,1727159452648,-151.0,0.00032876,7]
[339036797,1727159452658,-151.0,0.00032876,7]
[339036798,1727159452669,-151.0,0.00032876,7]
[339036799,1727159452680,-151.0,0.00032876,7]
[339036800,1727159452689,-191.738948,0.00032876,7]
[339036801,1727159452699,-522.2479968,0.00032876,14]
[339036802,1727159452709,-505.79340765,0.00032876,14]
[339036803,1727159452718,-151.0,0.00032876,7]
[339036804,1727159452727,-151.0,0.00032876,7]
[339036805,1727159452736,-151.0,0.00032876,7]
[339036806,1727159452747,-151.0,0.00032876,7]
[339036807,1727159452756,-151.0,0.00032876,7]
[339036808,1727159452765,-508.54049113,0.00032876,14]
[339036809,1727159452774,-500.0,0.00032876,14]
[339036810,1727159452783,-151.0,0.00032876,7]
[339036811,1727159452793,-500.0,0.00032876,14]
[339036812,1727159452802,-279.35277,0.00032876,7]
[339036813,1727159452811,-151.0,0.00032876,7]
[339036814,1727159452820,-151.0,0.00032876,7]
[339036815,1727159452829,-151.0,0.00032876,7]
[339036816,1727159452839,-151.0,0.00032876,7]
[339036817,1727159452849,-151.0,0.00032876,7]
[339036818,1727159452858,-500.0,0.00032876,14]
[339036819,1727159452867,-507.68137005,0.00032876,14]
[339036820,1727159452876,-510.90813688,0.00032876,14]
[339036821,1727159452885,-521.63220074,0.00032876,14]
[339036822,1727159452894,-500.0,0.00032876,14]
[339036823,1727159452903,-503.28244674,0.00032876,14]
[339036824,1727159452912,-505.18673374,0.00032876,14]
[339036825,1727159452920,-500.92456098,0.00032876,14]
[339036826,1727159452930,-500.0,0.00032876,14]
[339036827,1727159452939,-500.0,0.00032876,14]
[339036828,1727159452949,-500.0,0.00032876,14]
[339036829,1727159452958,-513.31323514,0.00032876,14]
[339036830,1727159452967,-612.05,0.00032876,14]
[339036831,1727159452976,-500.0,0.00032876,14]
[339036832,1727159452986,-525.73744385,0.00032876,14]
[339036833,1727159452995,-501.4398857,0.00032876,14]
[339036834,1727159453004,-514.53660462,0.00032876,14]
[339036835,1727159453013,-500.0,0.00032876,14]
[339036836,1727159453022,-500.0,0.00032876,14]
[339036837,1727159453031,-504.82257109,0.00032876,14]
[339036838,1727159453041,-507.13923317,0.00032876,14]
[339036839,1727159453050,-500.0,0.00032876,14]
[339036840,1727159453059,-502.64014326,0.00032876,14]
[339036841,1727159453069,-500.0,0.00032876,14]
[339036842,1727159453078,-643.49,0.00032876,14]
[339036843,1727159453087,-500.0,0.00032876,14]
[339036844,1727159453167,-587.61475723,0.00032876,14]
[339036845,1727159453176,-500.0,0.00032876,14]
[339036846,1727159453185,-500.0,0.00032876,14]
[339036847,1727159453195,-550.70509818,0.00032876,14]
[339036848,1727159453205,-501.62564085,0.00032876,14]
[339036849,1727159453214,-502.92691829,0.00032876,14]
[339036850,1727159453224,-500.0,0.00032876,14]
[339036851,1727159453233,-500.0,0.00032876,14]
[339036852,1727159453243,-500.0,0.00032876,14]
[339036853,1727159453254,-2109.93,0.00032876,14]
[339036854,1727159453263,-500.0,0.00032876,14]
[339036855,1727159453272,-167.39838807,0.00032876,14]
[339036865,1727160334152,-199.04,0.00025,2]
[339036866,1727160334174,-738.922996,0.00025,30]
[339036867,1727160334195,-440.893194,0.00027397,2]
[339036868,1727160334216,-161.16422,0.00029685,2]
[339036869,1727160334238,-170.032247,0.00029856,2]
[339036870,1727160334260,-203.53617855,0.0003,30]
[339036872,1727160346110,-301.00366145,0.0003,30]
[339036873,1727160346130,-660.0,0.00030069,2]